bitfinex/quotes_BTCUSD_20220109
["timestamp","ask_amount","ask_price","bid_price","bid_amount"]
[1641759497791,0.055,42593.0,42591.0,0.00011]
[1641759498591,3.30986552,42593.0,42591.0,0.00011]
[1641759498791,0.71853709,42592.0,42591.0,0.00011]
[1641759498994,0.430656,42592.0,42591.0,0.00011]
[1641759499192,0.047,42592.0,42591.0,0.00011]
[1641759499593,0.430656,42592.0,42591.0,0.00011]
[1641759499800,0.873621,42592.0,42590.0,0.00022811]
[1641759499997,1.84285899,42591.0,42589.0,0.00011]
[1641759500202,1.84285899,42591.0,42583.0,0.0004725]
[1641759500204,0.78833236,42590.0,42583.0,0.0004725]
[1641759500397,0.5878,42584.0,42583.0,1.102e-05]
[1641759500648,1.48756936,42584.0,42583.0,1.102e-05]
[1641759500845,1.99084045,42584.0,42583.0,1.102e-05]
[1641759501444,1.99084045,42584.0,42580.0,0.00011]
[1641759501445,2.04778493,42584.0,42580.0,0.00011]
[1641759501644,0.262773,42581.0,42557.0,0.00811513]
[1641759501844,1.37613236,42580.0,42557.0,0.00811513]
[1641759502045,1.47613236,42580.0,42557.0,0.00811513]
[1641759502448,1.47613236,42580.0,42559.0,0.32646814]
[1641759502449,1.57613235,42580.0,42559.0,0.32646814]
[1641759502647,0.847766,42579.0,42559.0,0.32646814]
[1641759502845,0.383656,42576.0,42559.0,0.32646814]
[1641759503044,0.306965,42575.0,42559.0,0.32646814]
[1641759503445,0.406965,42575.0,42561.0,0.22542918]
[1641759503645,0.80024823,42575.0,42573.0,0.00012153]
[1641759504044,0.79749823,42575.0,42573.0,0.00012153]
[1641759504308,0.79474823,42575.0,42573.0,0.00012153]
[1641759504899,0.78474823,42575.0,42572.0,0.00032283]
[1641759505301,0.78599802,42575.0,42572.0,0.00032283]
[1641759505801,0.79699802,42575.0,42572.0,0.00053566]
[1641759506003,2.04399802,42575.0,42572.0,0.00032283]
[1641759506603,0.79699802,42575.0,42572.0,0.00032283]
[1641759507002,0.78599802,42575.0,42572.0,0.00032283]
[1641759507205,0.00141755,42575.0,42572.0,0.00032283]
[1641759507408,0.00016776,42575.0,42572.0,0.00032283]
[1641759507608,0.00016776,42575.0,42574.0,0.23701461]
[1641759507805,0.01016776,42575.0,42574.0,0.00011]
[1641759508631,0.39420276,42575.0,42574.0,0.00011]
[1641759508831,0.01016776,42575.0,42574.0,0.00011]
[1641759509032,0.00016776,42575.0,42574.0,0.00011]
[1641759509633,0.021,42575.0,42574.0,0.00011]
[1641759510332,0.405035,42575.0,42574.0,0.00011]
[1641759510534,0.505035,42575.0,42574.0,0.00011]
[1641759510733,0.405035,42575.0,42574.0,0.00011]
[1641759510936,0.1,42580.0,42574.0,0.00011]
[1641759511135,0.05871275,42579.0,42574.0,0.00011]
[1641759511635,0.07271275,42579.0,42574.0,0.00011]
[1641759512083,0.00016177,42575.0,42574.0,0.00011]
[1641759512384,0.00016177,42575.0,42574.0,0.00031303]
[1641759512786,0.85016177,42575.0,42574.0,0.00031303]
[1641759512987,1.00016177,42575.0,42574.0,0.00031303]
[1641759513184,0.15016177,42575.0,42572.0,0.00011]
[1641759513583,0.15016177,42575.0,42572.0,0.00031316]
[1641759513783,0.15916177,42575.0,42569.0,0.23342172]
[1641759513985,0.05872652,42572.0,42569.0,0.23342172]
[1641759514185,0.05872652,42572.0,42570.0,0.384035]
[1641759514586,0.00916177,42575.0,42570.0,0.384035]
[1641759514984,0.05887986,42575.0,42570.0,0.384035]
[1641759515838,0.06687986,42575.0,42570.0,0.38415589]
[1641759516236,0.00816177,42575.0,42570.0,0.38415589]
[1641759516839,0.00816177,42575.0,42570.0,0.38427678]
[1641759517041,0.00016177,42575.0,42570.0,0.00012089]
[1641759517237,0.05871845,42575.0,42571.0,0.384035]
[1641759517838,0.06871845,42575.0,42571.0,0.384035]
[1641759518239,0.01,42575.0,42571.0,0.384035]
[1641759518446,0.00015931,42576.0,42575.0,1.05871845]
[1641759518638,0.00015931,42576.0,42575.0,0.48975345]
[1641759519495,0.00015931,42576.0,42575.0,0.91502218]
[1641759519695,0.00415931,42576.0,42575.0,0.96302218]
[1641759520096,1.09932095,42584.0,42576.0,0.384035]
[1641759520296,1.09848342,42584.0,42576.0,0.047]
[1641759520497,0.00014743,42581.0,42578.0,0.30114802]
[1641759520895,0.05885834,42581.0,42578.0,0.30114802]
[1641759521697,0.06485834,42581.0,42578.0,0.038]
[1641759522196,0.00015663,42580.0,42578.0,0.038]
[1641759523030,0.00015663,42580.0,42576.0,0.19589631]
[1641759523239,0.00015663,42580.0,42575.0,0.48398718]
[1641759523632,0.00015663,42580.0,42579.0,0.30434079]
[1641759523831,0.00609663,42580.0,42579.0,0.30434079]
[1641759524632,0.50609663,42580.0,42575.0,0.10071845]
[1641759525031,0.50609663,42580.0,42575.0,0.05871845]
[1641759525032,0.05871743,42578.0,42575.0,0.05871845]
[1641759525837,0.006,42578.0,42576.0,0.27635734]
[1641759526234,0.06471432,42578.0,42576.0,0.27635734]
[1641759526884,0.06471432,42578.0,42576.0,0.50635734]
[1641759527084,0.05871432,42578.0,42576.0,0.50635734]
[1641759527285,0.00015411,42577.0,42576.0,0.50635734]
[1641759527883,0.00615411,42577.0,42576.0,0.53735734]
[1641759528086,0.00615411,42577.0,42576.0,0.261]
[1641759528495,0.35615411,42577.0,42576.0,0.261]
[1641759528889,0.15615411,42577.0,42576.0,0.261]
[1641759529090,0.15015411,42577.0,42570.0,0.24358304]
[1641759529388,0.15015411,42577.0,42568.0,0.00122779]
[1641759529389,0.8,42576.0,42568.0,0.00122779]
[1641759529688,0.05872258,42573.0,42565.0,2.7034666]
[1641759530090,0.05872258,42573.0,42567.0,0.384035]
[1641759530288,0.05872258,42573.0,42571.0,0.27369641]
[1641759530533,0.05872258,42573.0,42572.0,0.384035]
[1641759531830,0.06672258,42573.0,42572.0,0.384035]
[1641759532331,1.0653596,42573.0,42572.0,0.384035]
[1641759532530,1.0653596,42573.0,42571.0,0.27369641]
[1641759533131,1.0573596,42573.0,42571.0,0.27369641]
[1641759533331,0.99863702,42573.0,42571.0,0.27369641]
[1641759533533,0.99863702,42573.0,42572.0,1.11840888]
[1641759533735,1.00663702,42573.0,42572.0,1.11840888]
[1641759533931,1.00663702,42573.0,42572.0,0.384035]
[1641759534977,0.99863702,42573.0,42572.0,0.64399786]
[1641759535778,0.99863702,42573.0,42572.0,0.384035]
[1641759536478,0.99863702,42573.0,42572.0,0.614035]
[1641759537679,0.99863702,42573.0,42572.0,0.384035]
[1641759537880,1.00463702,42573.0,42570.0,0.00020571]
[1641759538734,1.00463702,42573.0,42571.0,0.384035]
[1641759539131,0.99863702,42573.0,42571.0,0.384035]
[1641759539830,1.00463702,42573.0,42571.0,0.384035]
[1641759541036,0.99863702,42573.0,42571.0,0.384035]
[1641759541783,1.00563702,42573.0,42571.0,0.384035]
[1641759542185,0.00015347,42572.0,42571.0,0.384035]
[1641759543586,0.00015347,42572.0,42569.0,0.00020589]
[1641759543786,0.00415347,42572.0,42569.0,0.00020589]
[1641759544588,0.00415347,42572.0,42568.0,0.00020589]
[1641759544787,0.00415347,42572.0,42569.0,0.384035]
[1641759544989,0.00015347,42572.0,42569.0,0.384035]
[1641759545189,0.00015347,42572.0,42569.0,0.379035]
[1641759545834,0.00115347,42572.0,42569.0,0.379035]
[1641759547135,0.00015347,42572.0,42569.0,0.379035]
[1641759547335,0.00015334,42571.0,42569.0,0.379035]
[1641759547935,0.00215334,42571.0,42569.0,0.379035]
[1641759549137,0.00015334,42571.0,42569.0,0.379035]
[1641759550184,0.00015334,42571.0,42569.0,0.437751]
[1641759550383,0.00015334,42571.0,42569.0,0.432751]
[1641759550784,0.00015334,42571.0,42569.0,0.374035]
[1641759550984,0.99835403,42573.0,42569.0,0.374035]
[1641759551788,1.00235403,42573.0,42569.0,0.374035]
[1641759551990,1.00235403,42573.0,42568.0,0.00020589]
[1641759552186,0.00014774,42570.0,42569.0,0.00020589]
[1641759552387,0.00014774,42570.0,42569.0,0.38428389]
[1641759553040,0.00014774,42570.0,42569.0,0.00020589]
[1641759553240,1.18422574,42570.0,42569.0,0.00020589]
[1641759553442,1.18422574,42570.0,42567.0,0.00020589]
[1641759553443,1.52577441,42570.0,42567.0,0.00020589]
[1641759553640,1.57577441,42570.0,42567.0,0.00020589]
[1641759553839,0.22692719,42569.0,42567.0,0.00020589]
[1641759554041,1.75702489,42568.0,42567.0,0.00020589]
[1641759554243,1.75825155,42568.0,42567.0,0.00020589]
[1641759554440,1.96699363,42568.0,42566.0,0.00020589]
[1641759554645,1.5219884,42567.0,42566.0,0.00020589]
[1641759554841,1.534078,42567.0,42566.0,0.00020589]
[1641759555040,1.634078,42567.0,42566.0,0.00020589]
[1641759555443,1.53700855,42566.0,42564.0,0.0002059]
[1641759555645,1.68700855,42566.0,42564.0,0.0002059]
[1641759556642,1.68700855,42566.0,42557.0,0.00414471]
[1641759556643,0.05874417,42562.0,42557.0,0.00414471]
[1641759556882,0.25200564,42561.0,42557.0,0.00414471]
[1641759557082,0.30200564,42561.0,42557.0,0.00414471]
[1641759557288,0.05,42561.0,42557.0,0.00414471]
[1641759557483,0.35436883,42565.0,42557.0,0.00414471]
[1641759557684,0.00016127,42562.0,42557.0,0.00435758]
[1641759557883,0.006,42561.0,42557.0,0.00435758]
[1641759558684,0.006,42561.0,42557.0,0.00457045]
[1641759558885,0.006,42561.0,42557.0,0.00435758]
[1641759559086,0.05890254,42562.0,42557.0,0.00435758]
[1641759559486,0.00016126,42562.0,42557.0,0.00435758]
[1641759559890,0.00616126,42562.0,42557.0,0.00435758]
[1641759560747,0.05873918,42561.0,42557.0,0.00435758]
[1641759560941,0.05873918,42561.0,42557.0,0.00457045]
[1641759560942,0.36083264,42560.0,42557.0,0.00457045]
[1641759561146,0.384078,42559.0,42557.0,0.00435758]
[1641759561341,0.32975192,42558.0,42557.0,0.00435758]
[1641759561740,0.56181762,42558.0,42557.0,0.00435758]
[1641759561940,0.34675192,42558.0,42557.0,0.00435758]
[1641759562141,0.34675192,42558.0,42557.0,0.00414471]
[1641759562643,0.39675192,42558.0,42557.0,0.00414471]
[1641759563039,0.61802885,42558.0,42557.0,0.00414471]
[1641759563840,0.63702885,42558.0,42557.0,0.00414471]
[1641759564039,1.02110685,42558.0,42557.0,0.00414471]
[1641759564293,0.78282992,42558.0,42557.0,0.00414471]
[1641759564687,0.069,42558.0,42557.0,0.00414471]
[1641759565092,0.0001367,42560.0,42557.0,0.00414471]
[1641759565290,0.26803495,42559.0,42557.0,0.00414471]
[1641759565487,0.38827438,42558.0,42557.0,0.00414471]
[1641759566089,0.83827438,42558.0,42557.0,0.00414471]
[1641759566288,0.38827438,42558.0,42557.0,0.00414471]
[1641759566488,0.05,42558.0,42557.0,0.00414471]
[1641759566990,0.62571991,42558.0,42557.0,0.00414471]
[1641759567189,0.05,42558.0,42557.0,0.00414471]
[1641759567394,0.05014621,42558.0,42557.0,0.00414471]
[1641759567592,0.33024023,42558.0,42557.0,0.00414471]
[1641759567796,0.00014621,42558.0,42557.0,0.00414471]
[1641759568040,0.64755278,42558.0,42557.0,0.00414471]
[1641759568439,0.69755278,42558.0,42557.0,0.00414471]
[1641759568841,0.06814621,42558.0,42557.0,0.00414471]
[1641759569041,0.00014621,42558.0,42557.0,0.00414471]
[1641759569242,0.70014621,42558.0,42557.0,0.00254471]
[1641759569441,0.00014621,42558.0,42557.0,0.00254471]
[1641759569842,0.01114621,42558.0,42557.0,0.00254471]
[1641759571044,0.00014621,42558.0,42557.0,0.00254471]
[1641759571889,0.01414621,42558.0,42556.0,0.29119949]
[1641759572292,0.01414621,42558.0,42557.0,0.384078]
[1641759572891,0.99851056,42562.0,42558.0,0.6716395]
[1641759573791,0.33174271,42561.0,42558.0,0.6716395]
[1641759573993,1.18851056,42562.0,42558.0,0.6716395]
[1641759574190,0.1,42561.0,42558.0,0.6716395]
[1641759574392,0.1,42561.0,42558.0,0.67184536]
[1641759574992,1.03851013,42562.0,42558.0,0.67184536]
[1641759575191,0.99851013,42562.0,42558.0,0.67184536]
[1641759575391,0.99851013,42562.0,42558.0,0.6716395]
[1641759575392,0.99851012,42562.0,42558.0,0.6716395]
[1641759575842,1.01251012,42562.0,42558.0,0.6716395]
[1641759576243,0.98751012,42562.0,42558.0,0.6716395]
[1641759576542,0.98751012,42562.0,42558.0,0.67184537]
[1641759577143,0.97351012,42562.0,42558.0,0.67184537]
[1641759577342,0.00013194,42561.0,42558.0,0.67184537]
[1641759577542,0.00013194,42561.0,42558.0,0.67205124]
[1641759577742,0.00013194,42561.0,42558.0,0.67184537]
[1641759577942,0.01313194,42561.0,42558.0,0.67184537]
[1641759578149,0.05874035,42560.0,42558.0,0.67184537]
[1641759578344,1.95732945,42559.0,42558.0,0.67184537]
[1641759578546,2.05732945,42559.0,42558.0,0.67184537]
[1641759578843,2.05732945,42559.0,42558.0,0.6716395]
[1641759578844,0.77325145,42559.0,42558.0,0.6716395]
[1641759579044,0.70837168,42559.0,42558.0,0.6716395]
[1641759579288,0.05874035,42560.0,42558.0,0.6716395]
[1641759579889,0.06974035,42560.0,42558.0,0.6716395]
[1641759581090,0.05874035,42560.0,42558.0,0.6716395]
[1641759581890,0.06974035,42560.0,42558.0,0.6716395]
[1641759582091,0.00013171,42559.0,42558.0,0.6716395]
[1641759582895,0.83420971,42559.0,42558.0,0.6716395]
[1641759583151,0.93420971,42559.0,42558.0,0.6716395]
[1641759583546,0.98420971,42559.0,42558.0,0.6716395]
[1641759583948,0.67163,42558.0,42553.0,0.0100852]
[1641759584150,0.269536,42557.0,42547.0,0.0008237]
[1641759584351,0.98151749,42558.0,42547.0,0.0008237]
[1641759584352,0.10876532,42553.0,42547.0,0.0008237]
[1641759584647,0.384078,42552.0,42547.0,0.0008237]
[1641759584849,0.434078,42552.0,42547.0,0.0008237]
[1641759585048,1.18024512,42552.0,42547.0,0.0008237]
[1641759585449,1.98333308,42552.0,42551.0,4e-06]
[1641759585647,0.73633308,42552.0,42551.0,4e-06]
[1641759586047,0.545078,42552.0,42551.0,4e-06]
[1641759586249,0.93115001,42552.0,42551.0,4e-06]
[1641759586448,0.90615001,42552.0,42551.0,4e-06]
[1641759586895,1.06135065,42552.0,42551.0,4e-06]
[1641759587095,0.20805639,42545.0,42541.0,0.0051783]
[1641759587294,0.59213439,42545.0,42541.0,0.0051783]
[1641759587896,0.396078,42545.0,42541.0,0.0051783]
[1641759588295,0.012,42545.0,42537.0,0.23526055]
[1641759588601,0.012,42545.0,42537.0,0.00033]
[1641759588796,0.012,42545.0,42542.0,0.00021291]
[1641759589197,0.384078,42544.0,42542.0,0.00021291]
[1641759589398,0.20401049,42549.0,42543.0,0.31333216]
[1641759589594,0.00013087,42552.0,42543.0,0.31333216]
[1641759589994,0.023,42549.0,42543.0,0.31333216]
[1641759590850,0.384078,42552.0,42544.0,0.00021291]
[1641759591051,0.7227708,42552.0,42544.0,0.00021291]
[1641759591257,0.11752641,42548.0,42544.0,0.00021291]
[1641759591459,0.43776326,42548.0,42544.0,0.00021291]
[1641759591653,0.434078,42547.0,42544.0,0.00021291]
[1641759592153,0.85899445,42547.0,42546.0,0.00020669]
[1641759592753,1.684078,42547.0,42546.0,0.00020669]
[1641759593755,0.534078,42547.0,42546.0,0.00020669]
[1641759593958,0.012,42547.0,42546.0,0.00020669]
[1641759594592,0.012,42547.0,42544.0,0.00020269]
[1641759594593,0.396078,42547.0,42544.0,0.00020269]
[1641759594794,0.012,42547.0,42544.0,0.00020269]
[1641759594991,0.96048907,42549.0,42544.0,0.00040538]
[1641759595195,0.44283567,42548.0,42544.0,0.00040538]
[1641759595394,0.7009097,42548.0,42545.0,0.27695881]
[1641759595596,0.44283567,42548.0,42544.0,0.00020269]
[1641759595793,0.05,42548.0,42544.0,0.00020269]
[1641759595992,0.384078,42547.0,42544.0,0.0004088]
[1641759596195,0.05876222,42546.0,42544.0,0.00020611]
[1641759596397,0.719536,42545.0,42544.0,0.00020611]
[1641759596594,0.869536,42545.0,42544.0,0.00020611]
[1641759596793,1.18691121,42545.0,42544.0,0.00020611]
[1641759597194,0.869536,42545.0,42544.0,0.00020611]
[1641759597394,1.18707047,42545.0,42542.0,0.00020612]
[1641759597696,1.18707047,42545.0,42534.0,0.04351322]
[1641759597697,1.65,42543.0,42534.0,0.04351322]
[1641759597894,0.35280317,42542.0,42534.0,0.04351322]
[1641759598350,0.45280317,42542.0,42541.0,0.00020612]
[1641759598551,0.88688117,42542.0,42541.0,0.00020612]
[1641759599551,0.88688117,42542.0,42534.0,0.04351322]
[1641759599751,0.269536,42541.0,42534.0,0.04351322]
[1641759599951,0.05877175,42539.0,42534.0,0.04351322]
[1641759600351,0.115,42542.0,42534.0,0.04351322]
[1641759600551,0.015,42542.0,42534.0,0.04351322]
[1641759601152,0.61582838,42544.0,42532.0,0.00124773]
[1641759601458,0.11755209,42540.0,42531.0,0.33498481]
[1641759601652,0.05,42540.0,42531.0,0.33498481]
[1641759601890,0.006,42540.0,42531.0,0.34898481]
[1641759602391,0.006,42540.0,42531.0,0.014]
[1641759602591,0.006,42540.0,42531.0,0.009]
[1641759602791,0.006,42540.0,42533.0,0.00021294]
[1641759602993,0.00016391,42538.0,42533.0,0.00021294]
[1641759603191,0.384078,42537.0,42533.0,0.00021294]
[1641759603592,0.44285099,42537.0,42533.0,0.00021294]
[1641759603791,0.05,42536.0,42533.0,0.00021294]
[1641759603994,0.22379473,42534.0,42533.0,0.00020881]
[1641759604191,0.025,42535.0,42533.0,0.00020881]
[1641759604592,0.062,42537.0,42533.0,0.00020881]
[1641759604792,0.012,42537.0,42533.0,0.00020881]
[1641759605192,0.00016715,42538.0,42531.0,0.00020882]
[1641759605193,0.25855798,42538.0,42531.0,0.00020882]
[1641759605391,0.30305154,42538.0,42531.0,0.00020882]
[1641759605644,0.40305154,42538.0,42531.0,0.00020882]
[1641759605843,0.05877359,42537.0,42531.0,0.00020882]
[1641759606045,0.05877359,42537.0,42532.0,0.00020881]
[1641759606243,0.37297913,42537.0,42532.0,0.00020881]
[1641759606445,0.384078,42536.0,42532.0,0.00020881]
[1641759606648,0.484078,42536.0,42532.0,0.00020881]
[1641759606845,0.54285834,42536.0,42532.0,0.00020881]
[1641759607044,0.15878034,42536.0,42532.0,0.00020881]
[1641759607246,0.05890902,42536.0,42532.0,0.0002056]
[1641759607848,0.00012868,42536.0,42532.0,0.0002056]
[1641759608045,0.02212868,42536.0,42532.0,0.0002056]
[1641759608246,0.02212868,42536.0,42532.0,0.0589726]
[1641759608445,0.02212868,42536.0,42532.0,0.00020574]
[1641759608747,0.3001058,42540.0,42534.0,0.31795974]
[1641759608945,0.384078,42539.0,42532.0,0.00020574]
[1641759609149,0.3001058,42540.0,42532.0,0.00020574]
[1641759609393,0.00015817,42538.0,42532.0,0.00020574]
[1641759609694,0.05877351,42537.0,42532.0,0.00020574]
[1641759609893,0.00015817,42538.0,42532.0,0.00020574]
[1641759609894,0.00015817,42538.0,42534.0,0.25858843]
[1641759610093,0.01415817,42538.0,42534.0,0.25858843]
[1641759610294,0.1,42545.0,42535.0,0.55]
[1641759610495,0.1,42544.0,42534.0,0.25858843]
[1641759610695,0.05876529,42543.0,42535.0,0.058763]
[1641759610894,0.05378296,42543.0,42534.0,0.25858843]
[1641759611493,0.05378296,42543.0,42534.0,0.58395462]
[1641759611698,9.331e-05,42541.0,42534.0,0.25858843]
[1641759612095,0.0587684,42540.0,42534.0,0.25858843]
[1641759612495,9.331e-05,42541.0,42534.0,0.25858843]
[1641759612697,9.331e-05,42541.0,42535.0,0.00021293]
[1641759612897,0.00016323,42540.0,42535.0,0.00021293]
[1641759613845,0.00016645,42540.0,42536.0,0.058762]
[1641759614047,0.04016645,42540.0,42535.0,0.0002088]
[1641759614256,0.384078,42539.0,42535.0,0.0002088]
[1641759614448,0.434078,42539.0,42535.0,0.0002088]
[1641759614646,0.534078,42539.0,42535.0,0.0002088]
[1641759614846,0.534078,42539.0,42535.0,0.0004176]
[1641759615148,0.96408569,42536.0,42535.0,0.0002088]
[1641759615448,0.21408569,42536.0,42535.0,0.0002088]
[1641759615648,0.05877118,42539.0,42535.0,0.0002088]
[1641759615848,0.00016645,42540.0,42535.0,0.0002088]
[1641759616046,0.014,42536.0,42533.0,0.26732545]
[1641759616910,0.014,42536.0,42533.0,0.64698435]
[1641759617102,0.014,42536.0,42534.0,0.384078]
[1641759617403,0.014,42536.0,42535.0,0.22679669]
[1641759617703,0.014,42536.0,42535.0,0.65787469]
[1641759618304,0.00012447,42539.0,42535.0,0.65787469]
[1641759618501,0.00012447,42539.0,42538.0,0.32238509]
[1641759618902,0.00012447,42539.0,42538.0,0.64708258]
[1641759619102,0.00012447,42539.0,42538.0,1.03116058]
[1641759619511,0.00012447,42539.0,42538.0,2.42816058]
[1641759619705,0.49048736,42561.0,42549.0,0.1013985]
[1641759619905,0.66129329,42561.0,42552.0,0.05997306]
[1641759620103,0.2818,42564.0,42553.0,0.047]
[1641759620304,0.38996264,42566.0,42553.0,0.38142841]
[1641759620543,1.561,42567.0,42553.0,0.38142841]
[1641759620743,1.561,42567.0,42553.0,0.76105658]
[1641759621143,0.20222596,42560.0,42553.0,0.76105658]
[1641759621541,0.30222596,42560.0,42553.0,0.38142841]
[1641759621744,0.30222596,42560.0,42553.0,0.047]
[1641759621944,0.30222596,42560.0,42549.0,0.1013985]
[1641759622150,0.38545302,42557.0,42549.0,0.1013985]
[1641759622344,0.05137502,42557.0,42549.0,0.1013985]
[1641759622547,0.00137502,42557.0,42549.0,0.1013985]
[1641759622746,0.00137502,42557.0,42555.0,0.2528091]
[1641759622747,0.06012115,42557.0,42555.0,0.2528091]
[1641759622947,0.00012232,42557.0,42555.0,0.2528091]
[1641759623946,0.01012232,42557.0,42555.0,0.2608091]
[1641759624401,0.01012232,42557.0,42555.0,0.008]
[1641759625299,0.00012232,42557.0,42550.0,0.058743]
[1641759625501,0.00012232,42557.0,42551.0,0.24373577]
[1641759626100,0.00012232,42557.0,42551.0,0.26073577]
[1641759626101,0.00512232,42557.0,42551.0,0.26073577]
[1641759627101,0.00016471,42556.0,42553.0,0.05874]
[1641759627305,0.0002869,42556.0,42553.0,0.05874]
[1641759628047,0.0002869,42556.0,42553.0,0.09474]
[1641759628343,0.00012219,42556.0,42553.0,0.09474]
[1641759628744,0.00012219,42556.0,42553.0,0.036]
[1641759629143,0.00012219,42556.0,42554.0,0.32709521]
[1641759629343,0.00012219,42556.0,42555.0,1.047]
[1641759629541,0.00012219,42556.0,42555.0,1.86220602]
[1641759630142,0.00012219,42556.0,42555.0,1.88120602]
[1641759630444,0.00012219,42556.0,42555.0,0.93993302]
[1641759630842,0.00012219,42556.0,42555.0,0.98993302]
[1641759631244,0.20988799,42558.0,42557.0,1.23535455]
[1641759631543,0.20988799,42558.0,42557.0,0.76780319]
[1641759631999,0.20988799,42558.0,42557.0,0.39931813]
[1641759632199,0.20988799,42558.0,42557.0,0.398078]
[1641759632801,0.20973068,42558.0,42557.0,0.398078]
[1641759633204,0.20973068,42558.0,42557.0,0.384078]
[1641759634104,0.20973068,42558.0,42557.0,0.398078]
[1641759635306,0.20973068,42558.0,42557.0,0.384078]
[1641759636141,0.20973068,42558.0,42557.0,0.397078]
[1641759637240,0.20973068,42558.0,42557.0,0.384078]
[1641759638041,0.20973068,42558.0,42557.0,0.395078]
[1641759639398,0.20973068,42558.0,42557.0,0.384078]
[1641759640096,0.23873068,42558.0,42557.0,0.393078]
[1641759641495,0.20973068,42558.0,42557.0,0.384078]
[1641759641996,0.20973068,42558.0,42557.0,0.400078]
[1641759643257,0.20973068,42558.0,42557.0,0.384078]
[1641759644057,0.20973068,42558.0,42557.0,0.397078]
[1641759645264,0.20973068,42558.0,42557.0,0.384078]
[1641759645864,0.20973068,42558.0,42557.0,0.501533]
[1641759646062,0.20973068,42558.0,42557.0,0.513533]
[1641759647493,0.20973068,42558.0,42557.0,0.501533]
[1641759648093,0.20973068,42558.0,42557.0,0.514533]
[1641759649297,0.20973068,42558.0,42557.0,0.384078]
[1641759649897,0.20973068,42558.0,42554.0,0.54838048]
[1641759650097,0.65973068,42558.0,42557.0,0.01]
[1641759650397,1.05655646,42558.0,42557.0,0.01]
[1641759650659,1.63763446,42558.0,42557.0,0.01]
[1641759650860,1.15,42557.0,42554.0,0.54838048]
[1641759651059,1.51274372,42555.0,42554.0,0.54838048]
[1641759651258,1.99382172,42555.0,42554.0,0.54838048]
[1641759651458,2.14006309,42555.0,42554.0,0.54838048]
[1641759652059,1.419536,42554.0,42549.0,0.1013985]
[1641759652260,0.17627942,42553.0,42549.0,0.1013985]
[1641759652460,0.0012462,42550.0,42549.0,0.1013985]
[1641759652663,1.4207822,42550.0,42549.0,0.1013985]
[1641759653059,1.5207822,42550.0,42549.0,0.1013985]
[1641759653260,1.5707822,42550.0,42549.0,0.1013985]
[1641759653863,1.6207822,42550.0,42549.0,0.1013985]
[1641759654062,1.6377822,42550.0,42549.0,0.1013985]
[1641759654295,1.64557553,42550.0,42549.0,0.1013985]
[1641759654500,1.69257553,42550.0,42549.0,0.1013985]
[1641759655196,1.6847822,42550.0,42549.0,0.1013985]
[1641759655398,1.6677822,42550.0,42549.0,0.1013985]
[1641759655596,1.4677822,42550.0,42549.0,0.1013985]
[1641759656197,1.4787822,42550.0,42549.0,0.1013985]
[1641759656896,1.5287822,42550.0,42549.0,0.1013985]
[1641759657097,1.6787822,42550.0,42549.0,0.1013985]
[1641759657297,1.67889926,42550.0,42549.0,0.1013985]
[1641759657497,1.66789926,42550.0,42549.0,0.1013985]
[1641759658143,1.67889926,42550.0,42549.0,0.1013985]
[1641759658653,0.01111706,42550.0,42549.0,0.1013985]
[1641759659445,0.00011706,42550.0,42549.0,0.1013985]
[1641759659644,0.00011706,42550.0,42549.0,0.3313985]
[1641759660344,0.02911706,42550.0,42549.0,0.3313985]
[1641759661348,0.00011706,42550.0,42549.0,0.3313985]
[1641759661548,0.43419506,42550.0,42549.0,0.3313985]
[1641759661796,0.7708075,42550.0,42549.0,0.3313985]
[1641759662001,1.6208075,42550.0,42549.0,0.3313985]
[1641759662197,0.9388075,42550.0,42549.0,0.3313985]
[1641759663198,0.8888075,42550.0,42549.0,0.3313985]
[1641759663399,0.9208075,42550.0,42549.0,0.3313985]
[1641759663998,1.2208075,42550.0,42549.0,0.3313985]
[1641759664201,1.2318075,42550.0,42549.0,0.3313985]
[1641759665199,0.9318075,42550.0,42549.0,0.3313985]
[1641759665399,0.9208075,42550.0,42549.0,0.3313985]
[1641759666045,1.3208075,42550.0,42549.0,0.3313985]
[1641759666247,0.26061764,42545.0,42538.0,0.29003948]
[1641759666452,0.26061764,42545.0,42538.0,0.28546093]
[1641759667447,0.00016065,42544.0,42538.0,0.28546093]
[1641759667647,0.00016065,42544.0,42538.0,0.34421893]
[1641759668249,0.01316065,42544.0,42538.0,0.35221893]
[1641759668448,0.00016065,42543.0,42538.0,0.35221893]
[1641759669051,0.00016065,42543.0,42538.0,0.066758]
[1641759669503,0.00016065,42543.0,42538.0,0.288758]
[1641759670103,0.02416065,42543.0,42538.0,0.298758]
[1641759670504,0.02416065,42543.0,42538.0,0.068758]
[1641759670704,0.02416049,42543.0,42538.0,0.068758]
[1641759670907,0.02416049,42543.0,42538.0,0.01]
[1641759671105,1.02416049,42543.0,42538.0,0.01]
[1641759671507,1.00016049,42543.0,42537.0,0.00020201]
[1641759671709,1.00016049,42543.0,42538.0,0.05876]
[1641759671907,1.00015744,42543.0,42538.0,0.05876]
[1641759672108,0.00012497,42542.0,42537.0,0.01120592]
[1641759673161,0.00121169,42538.0,42537.0,0.01120592]
[1641759673362,1.53533397,42538.0,42537.0,0.00020592]
[1641759673760,1.68533397,42538.0,42537.0,0.00020592]
[1641759674157,1.93920645,42538.0,42535.0,0.00020599]
[1641759674361,0.05877292,42537.0,42535.0,0.00020599]
[1641759675160,0.05877292,42537.0,42534.0,0.00020591]
[1641759675560,0.30852497,42542.0,42534.0,0.00020591]
[1641759675761,0.00012497,42542.0,42537.0,0.37506403]
[1641759676460,0.00012497,42542.0,42537.0,0.62558354]
[1641759676657,0.00012497,42542.0,42537.0,0.95401544]
[1641759677098,0.00012497,42542.0,42537.0,1.00552101]
[1641759677300,1.00030343,42543.0,42537.0,1.00552101]
[1641759677301,0.00012483,42541.0,42537.0,0.68454945]
[1641759677500,0.00012483,42541.0,42537.0,0.43402994]
[1641759678401,0.00012483,42541.0,42537.0,0.43402993]
[1641759679601,0.00012483,42541.0,42537.0,0.43402994]
[1641759680204,0.00012483,42541.0,42537.0,0.42402994]
[1641759682166,0.00012483,42541.0,42538.0,0.384078]
[1641759682366,1.00012483,42541.0,42538.0,0.384078]
[1641759682568,1.00012483,42541.0,42539.0,0.32379434]
[1641759682769,1.00012483,42541.0,42540.0,0.058757]
[1641759686311,1.00012483,42541.0,42537.0,0.36526994]
[1641759687911,1.00012483,42541.0,42537.0,0.42402994]
[1641759688352,1.00012483,42541.0,42537.0,0.42423585]
[1641759688552,1.00012483,42541.0,42537.0,0.42402994]
[1641759689156,1.00012483,42541.0,42538.0,0.56870646]
[1641759690157,1.00012483,42541.0,42539.0,0.117499]
[1641759690358,1.00012483,42541.0,42540.0,0.597]
[1641759690557,1.00012483,42541.0,42540.0,0.71996735]